bitfinex/quotes_SOLUSD_20250617
["timestamp","ask_amount","ask_price","bid_price","bid_amount"]
[1750199463151,5.66653433,147.59,147.57,12.71623915]
[1750199463545,10.66800311,147.6,147.57,12.71623915]
[1750199463749,5.66653433,147.6,147.57,12.71623915]
[1750199465342,143.925777,147.59,147.57,12.71623915]
[1750199465740,10.95213841,147.58,147.57,5.94]
[1750199465921,11.09429998,147.58,147.57,5.94]
[1750199467015,143.925777,147.59,147.53,23.72398833]
[1750199467222,5.00064582,147.58,147.54,5.66653433]
[1750199467641,10.66718015,147.58,147.55,6.7773636]
[1750199467955,5.66653433,147.58,147.55,6.7773636]
[1750199468429,10.66698552,147.58,147.55,6.7773636]
[1750199470062,10.66698552,147.58,147.55,23.72077261]
[1750199471469,10.66698552,147.58,147.55,6.7773636]
[1750199471627,5.66653433,147.56,147.53,6.77828238]
[1750199471826,5.66653433,147.55,147.53,6.77828238]
[1750199473860,5.66653433,147.54,147.53,6.77828238]
[1750199474026,5.66653433,147.55,147.53,6.77828238]
[1750199474444,5.00045119,147.56,147.53,6.77828238]
[1750199474758,5.66653433,147.55,147.53,6.77828238]
[1750199477935,5.28477433,147.57,147.53,6.77828238]
[1750199478153,5.66653433,147.56,147.53,6.77828238]
[1750199479744,5.66653433,147.56,147.53,23.72398833]
[1750199481560,5.66653433,147.56,147.53,6.77828238]
[1750199481867,5.66653433,147.54,147.53,6.77828238]
[1750199484857,5.66653433,147.54,147.52,12.71852664]
[1750199485034,5.66653433,147.53,147.52,12.71852664]
[1750199485438,5.66653433,147.53,147.52,5.94]
[1750199486149,5.66653433,147.53,147.52,12.71874186]
[1750199487053,5.66653433,147.53,147.52,5.94]
[1750199488147,5.28477433,147.55,147.52,5.94]
[1750199488344,5.66653433,147.53,147.52,5.94]
[1750199488941,5.66653433,147.54,147.52,5.94]
[1750199489155,5.28477433,147.55,147.53,6.77828238]
[1750199489156,5.66653433,147.55,147.53,6.77828238]
[1750199489668,5.66653433,147.54,147.53,6.77828238]
[1750199490866,143.925777,147.61,147.53,55.39052266]
[1750199491072,5.00128923,147.6,147.56,5.66653433]
[1750199491277,5.00128923,147.6,147.57,5.66653433]
[1750199491446,5.66653433,147.62,147.58,5.66653433]
[1750199491646,10.66853773,147.63,147.58,5.66653433]
[1750199491847,5.0020034,147.63,147.59,5.66653433]
[1750199492052,13.47981231,147.64,147.6,5.66653433]
[1750199492257,13.47981231,147.64,147.62,5.66653433]
[1750199492258,8.47780891,147.64,147.62,5.66653433]
[1750199492458,8.47780891,147.64,147.61,5.66653433]
[1750199492671,14.14434324,147.64,147.6,5.66653433]
[1750199493464,8.47780891,147.64,147.61,23.71113067]
[1750199496868,8.47780891,147.64,147.61,16.93652191]
[1750199497072,14.14434324,147.64,147.6,6.77506775]
[1750199497779,14.14434324,147.64,147.6,23.71273712]
[1750199498275,14.14434324,147.64,147.6,29.37927145]
[1750199499450,8.47780891,147.64,147.61,5.66653433]
[1750199500883,8.47780891,147.64,147.63,31.66653433]
[1750199501084,8.47780891,147.64,147.6,23.71273712]
[1750199501085,8.47780891,147.64,147.6,29.37927145]
[1750199501274,8.47780891,147.64,147.61,31.66653433]
[1750199501480,8.47780891,147.64,147.62,6.77414984]
[1750199505064,14.14434324,147.64,147.62,6.77414984]
[1750199505267,5.66653433,147.63,147.62,6.77414984]
[1750199506767,5.66653433,147.63,147.6,16.93766937]
[1750199506967,5.66653433,147.62,147.6,16.93766937]
[1750199509209,5.66653433,147.63,147.6,16.93766937]
[1750199510274,5.66653433,147.62,147.6,16.93766937]
[1750199511186,5.66653433,147.62,147.59,6.77552679]
[1750199511385,5.66653433,147.61,147.59,6.77552679]
[1750199511970,5.66653433,147.6,147.59,6.77552679]
[1750199512194,9.98390891,147.64,147.59,6.77552679]
[1750199512195,5.66653433,147.61,147.59,6.77552679]
[1750199512391,5.66653433,147.62,147.59,6.77552679]
[1750199512575,5.66653433,147.61,147.59,6.77552679]
[1750199519005,5.66653433,147.62,147.59,23.71434378]
[1750199519203,4.99389844,147.63,147.59,23.71434378]
[1750199519204,5.66653433,147.63,147.59,23.71434378]
[1750199519583,5.66653433,147.63,147.59,29.38087811]
[1750199519906,159.57622024,147.64,147.59,29.38087811]
[1750199520288,158.07012024,147.64,147.6,5.66653433]
[1750199520601,158.07012024,147.64,147.61,23.71113067]
[1750199521181,152.40358591,147.64,147.61,23.71113067]
[1750199521387,8.47780891,147.64,147.63,31.66653433]
[1750199521599,8.47780891,147.64,147.63,26.0]
[1750199522206,8.47780891,147.64,147.63,31.66653433]
[1750199522614,8.47780891,147.64,147.63,12.44022531]
[1750199524430,149.59231133,147.69,147.64,26.0]
[1750199524635,149.59231133,147.69,147.65,31.92]
[1750199524947,149.59231133,147.69,147.66,23.70310171]
[1750199525098,5.66653433,147.68,147.66,23.70310171]
[1750199525794,5.66653433,147.68,147.66,6.77231477]
[1750199527108,149.59231133,147.69,147.66,6.77231477]
[1750199527302,5.66653433,147.68,147.66,6.77231477]
[1750199527623,149.87663447,147.67,147.6,11.90443433]
[1750199527823,5.66653433,147.65,147.61,12.69460876]
[1750199528023,5.66653433,147.65,147.61,38.69460876]
[1750199528395,5.66653433,147.65,147.61,44.36114309]
[1750199528611,143.925777,147.67,147.61,44.36114309]
[1750199528830,5.66653433,147.66,147.61,44.36114309]
[1750199529524,5.66653433,147.66,147.61,55.63113067]
[1750199529703,5.66653433,147.66,147.61,61.297665]
[1750199532212,10.68105124,147.66,147.61,61.297665]
[1750199532411,5.66653433,147.66,147.61,61.297665]
[1750199533749,5.02881179,147.65,147.61,61.297665]
[1750199534117,5.02881179,147.64,147.61,61.297665]
[1750199534341,5.66653433,147.66,147.61,61.297665]
[1750199534514,5.03659941,147.65,147.61,61.297665]
[1750199534719,5.03659941,147.64,147.61,61.297665]
[1750199534929,5.66653433,147.65,147.61,61.297665]
[1750199535139,5.03679716,147.64,147.61,61.297665]
[1750199535454,5.66653433,147.65,147.61,61.297665]
[1750199535655,5.03792541,147.64,147.61,61.297665]
[1750199535969,5.66653433,147.65,147.61,61.297665]
[1750199536133,5.0380072,147.64,147.61,61.297665]
[1750199536331,5.66653433,147.65,147.61,61.297665]
[1750199536540,5.03839535,147.64,147.61,61.297665]
[1750199536751,5.66653433,147.65,147.61,61.297665]
[1750199536945,5.66653433,147.62,147.61,6.77460876]
[1750199537143,10.70487689,147.65,147.61,6.77460876]
[1750199537331,5.03916021,147.64,147.61,23.71113067]
[1750199537529,5.03916021,147.63,147.61,23.71113067]
[1750199537838,5.66653433,147.64,147.61,23.71113067]
[1750199538050,5.04055874,147.63,147.61,23.71113067]
[1750199538248,5.66653433,147.64,147.61,23.71113067]
[1750199538440,5.04118599,147.63,147.61,23.71113067]
[1750199538649,5.66653433,147.63,147.61,23.71113067]
[1750199538847,5.66653433,147.62,147.6,6.77506775]
[1750199539152,10.70634409,147.61,147.6,6.77506775]
[1750199539355,10.99066723,147.61,147.58,5.92]
[1750199539529,5.66653433,147.59,147.58,12.6959859]
[1750199539734,10.70634409,147.59,147.58,5.92]
[1750199540164,16.17055767,147.59,147.58,5.92]
[1750199542838,10.99066723,147.59,147.58,12.6959859]
[1750199544153,5.03980976,147.59,147.58,12.6959859]
[1750199544456,5.66653433,147.59,147.58,12.6959859]
[1750199547452,7.30013433,147.6,147.58,12.6959859]
[1750199547975,149.59231133,147.61,147.58,29.63595066]
[1750199554668,143.925777,147.61,147.58,29.63595066]
[1750199556285,5.66653433,147.6,147.58,29.63595066]
[1750199557281,149.59231133,147.61,147.58,29.63595066]
[1750199560287,5.66653433,147.6,147.58,29.63595066]
[1750199561077,143.925777,147.61,147.58,29.63595066]
[1750199562580,143.925777,147.61,147.58,35.30248499]
[1750199562878,143.925777,147.61,147.58,29.63595066]
[1750199566287,149.59231133,147.61,147.58,29.63595066]
[1750199568586,143.925777,147.66,147.6,31.66653433]
[1750199568890,143.925777,147.66,147.63,5.66653433]
[1750199569298,143.925777,147.66,147.64,5.92]
[1750199570170,143.925777,147.66,147.65,6.77277345]
[1750199574805,12.90141351,147.67,147.65,6.77277345]
[1750199574975,12.90141351,147.67,147.66,5.66653433]
[1750199575182,12.90141351,147.67,147.65,12.43930778]
[1750199575610,12.90141351,147.67,147.65,6.77277345]
[1750199575982,18.56794784,147.67,147.65,6.77277345]
[1750199579702,10.99445369,147.66,147.64,12.69320808]
[1750199579882,5.95085747,147.65,147.64,12.69320808]
[1750199580510,5.95085747,147.65,147.64,5.92]
[1750199581304,10.99445369,147.65,147.64,5.92]
[1750199581490,5.95085747,147.65,147.64,5.92]
[1750199581806,10.99445369,147.65,147.64,12.69323218]
[1750199582002,5.95085747,147.65,147.64,12.69323218]
[1750199582212,10.99445369,147.65,147.64,12.69323218]
[1750199582505,5.95085747,147.65,147.64,12.69323218]
[1750199582672,10.99445369,147.65,147.64,12.69323218]
[1750199582875,5.95085747,147.65,147.64,12.69323218]
[1750199583074,10.99445369,147.65,147.64,12.69323218]
[1750199583278,5.95085747,147.65,147.64,12.69323218]
[1750199583594,10.99445369,147.65,147.64,12.69323218]
[1750199583793,5.95085747,147.65,147.64,12.69323218]
[1750199583990,10.99445369,147.65,147.64,12.69323218]
[1750199584195,5.95085747,147.65,147.64,5.92]
[1750199584409,5.95085747,147.65,147.58,59.87992952]
[1750199584410,0.28432314,147.63,147.59,5.9]
[1750199584582,5.66653433,147.6,147.59,5.9]
[1750199584906,5.95085747,147.6,147.59,5.9]
[1750199585605,10.99445369,147.6,147.59,5.9]
[1750199585791,5.95085747,147.6,147.59,5.9]
[1750199586104,11.13661526,147.6,147.59,5.9]
[1750199588705,0.28432314,147.58,147.55,6.77731996]
[1750199588915,5.66653433,147.56,147.55,6.77731996]
[1750199590090,5.66653433,147.56,147.54,12.67766141]
[1750199590293,5.66653433,147.55,147.54,5.9]
[1750199590809,0.28432314,147.56,147.54,12.67774095]
[1750199590996,5.66653433,147.55,147.54,12.67774095]
[1750199591397,5.95085747,147.56,147.54,12.67774095]
[1750199592292,5.03767186,147.55,147.54,12.67774095]
[1750199593208,5.03702004,147.56,147.54,12.67774095]
[1750199593401,153.56653433,147.57,147.54,12.67774095]
[1750199593602,5.03690837,147.56,147.54,12.67774095]
[1750199593801,153.56653433,147.57,147.54,12.67774095]
[1750199596514,5.66653433,147.56,147.54,12.67774095]
[1750199596717,10.70146077,147.56,147.54,12.67774095]
[1750199596892,5.66653433,147.56,147.54,12.67774095]
[1750199598820,10.69771167,147.56,147.54,12.67774095]
[1750199599003,5.95085747,147.55,147.54,5.9]
[1750199599630,6.09301904,147.55,147.54,5.9]
[1750199599919,0.14216157,147.53,147.49,6.77984519]
[1750199600102,5.66653433,147.5,147.49,6.77984519]
[1750199600522,5.66653433,147.5,147.48,49.84]
[1750199600523,5.66653433,147.5,147.48,12.70037317]
[1750199600906,5.66653433,147.49,147.48,5.92]
[1750199601222,5.95085747,147.49,147.48,5.92]
[1750199604007,0.28432314,147.48,147.43,5.92]
[1750199604207,5.66653433,147.45,147.43,12.70288001]
[1750199605224,5.95085747,147.44,147.43,5.92]
[1750199605604,0.28432314,147.43,147.38,12.70518116]
[1750199605806,5.66653433,147.42,147.38,29.66813407]
[1750199606112,149.4687,147.45,147.39,5.66653433]
[1750199606324,5.66653433,147.44,147.39,5.66653433]
[1750199606624,5.66653433,147.44,147.4,6.78426051]
[1750199606824,5.95085747,147.44,147.4,23.74491179]
[1750199607329,5.66653433,147.43,147.4,23.74491179]
[1750199610638,5.66653433,147.43,147.4,6.78426051]
[1750199611436,5.66653433,147.43,147.39,6.7847208]
[1750199611840,5.66653433,147.42,147.39,6.7847208]
[1750199612936,0.42648471,147.44,147.39,6.7847208]
[1750199613120,5.66653433,147.43,147.39,6.7847208]
[1750199614418,5.95085747,147.42,147.39,6.7847208]
[1750199616024,5.66653433,147.41,147.39,6.7847208]
[1750199616652,5.95085747,147.42,147.39,6.7847208]
[1750199619126,5.66653433,147.41,147.39,6.7847208]
[1750199619948,5.95085747,147.42,147.39,6.7847208]
[1750199622036,0.28432314,147.42,147.39,6.7847208]
[1750199622239,5.95085747,147.42,147.39,6.7847208]
[1750199622443,0.28432314,147.44,147.39,29.41305715]
[1750199622639,5.95085747,147.44,147.4,5.66653433]
[1750199622837,5.8086959,147.44,147.4,5.66653433]
[1750199623349,5.66653433,147.43,147.39,23.74652282]
[1750199623752,5.66653433,147.4,147.39,6.7847208]
[1750199623936,5.66653433,147.41,147.39,6.7847208]
[1750199624336,5.66653433,147.4,147.39,6.7847208]
[1750199625537,5.66653433,147.4,147.38,5.92]
[1750199625538,6.09301904,147.4,147.38,5.92]
[1750199625746,5.8086959,147.39,147.38,5.92]
[1750199626325,0.28432314,147.38,147.34,6.78702321]
[1750199626755,5.66653433,147.36,147.34,6.78702321]
[1750199627439,5.66653433,147.35,147.34,6.78702321]
[1750199628153,5.66653433,147.37,147.34,23.75458123]
[1750199628358,5.66653433,147.35,147.33,6.78741577]
[1750199628563,5.66653433,147.34,147.33,6.78741577]
[1750199628761,5.66653433,147.35,147.33,6.78741577]
[1750199629057,5.66653433,147.36,147.33,6.78741577]
[1750199629429,5.66653433,147.35,147.33,6.78741577]
[1750199630129,0.42648471,147.37,147.33,6.78741577]
[1750199630332,5.66653433,147.35,147.33,6.78741577]
[1750199630555,5.66653433,147.34,147.33,6.78741577]
[1750199630934,5.66653433,147.34,147.32,5.92]
[1750199630935,5.66653433,147.34,147.32,12.70776677]
[1750199631741,5.66653433,147.34,147.32,6.78776677]
[1750199632037,5.66653433,147.33,147.32,6.78776677]
[1750199632256,0.28432314,147.34,147.32,6.78776677]
[1750199632462,5.66653433,147.33,147.31,6.7884054]
[1750199633553,0.28432314,147.34,147.25,5.66653433]
[1750199633554,0.28432314,147.31,147.25,5.66653433]
[1750199633864,0.28432314,147.31,147.26,5.66653433]
[1750199634070,5.95085747,147.31,147.26,5.66653433]
[1750199634234,5.66653433,147.33,147.28,5.66653433]
[1750199634435,5.66653433,147.32,147.28,5.66653433]
[1750199634637,5.66653433,147.32,147.28,11.58653433]
[1750199634969,5.95085747,147.33,147.28,11.58653433]
[1750199635178,5.95085747,147.33,147.28,5.92]
[1750199635341,5.66653433,147.3,147.28,5.92]
[1750199635538,5.66653433,147.31,147.29,6.78932717]
[1750199638041,0.42648471,147.32,147.29,6.78932717]
[1750199638256,5.66653433,147.31,147.29,6.78932717]
[1750199638573,5.66653433,147.31,147.28,5.92]
[1750199638574,5.95085747,147.3,147.28,12.7096211]
[1750199640272,5.66653433,147.29,147.28,12.7096211]
[1750199640766,5.66653433,147.29,147.28,12.70978815]
[1750199641572,5.95085747,147.29,147.28,5.92]
[1750199643269,5.66653433,147.33,147.28,18.37632248]
[1750199643459,5.66653433,147.33,147.28,35.35079287]
[1750199643770,5.66653433,147.32,147.28,29.68425854]
[1750199644067,5.66653433,147.29,147.28,12.70978815]
[1750199644456,0.28432314,147.31,147.28,12.70978815]
[1750199644655,5.66653433,147.3,147.28,12.70978815]
[1750199645946,5.95085747,147.31,147.28,12.70978815]
[1750199646145,5.66653433,147.3,147.28,12.70978815]
[1750199647982,5.66653433,147.3,147.28,6.78978815]
[1750199648665,0.14216157,147.28,147.25,6.79117147]
[1750199648870,5.66653433,147.26,147.24,5.96]
[1750199649074,0.28432314,147.26,147.24,5.96]
[1750199649256,1.5406,147.3,147.24,5.96]
[1750199649257,0.14216157,147.29,147.24,12.7516327]
[1750199649462,5.66653433,147.27,147.24,29.73071447]
[1750199650264,0.42648471,147.29,147.24,29.73071447]
[1750199650486,5.66653433,147.28,147.24,35.3972488]
[1750199650785,0.42648471,147.29,147.24,29.73071447]
[1750199650786,5.66653433,147.27,147.24,29.73071447]
[1750199651291,0.42648471,147.29,147.24,29.73071447]
[1750199651479,5.95085747,147.29,147.25,5.66653433]
[1750199651851,0.28432314,147.29,147.25,5.66653433]
[1750199652456,0.28432314,147.29,147.24,29.73071447]
[1750199652457,0.14216157,147.31,147.27,5.66653433]
[1750199652769,5.66653433,147.32,147.27,5.66653433]
[1750199653267,5.66653433,147.32,147.28,6.78978815]
[1750199653452,5.66653433,147.31,147.28,6.78978815]
[1750199654851,5.66653433,147.3,147.28,6.78978815]
[1750199655086,5.66653433,147.31,147.28,6.78978815]
[1750199655264,5.66653433,147.31,147.27,23.76479524]
[1750199656284,5.66653433,147.31,147.27,29.43132957]
[1750199658159,5.66653433,147.32,147.27,29.43132957]
[1750199658361,5.66653433,147.34,147.29,5.66653433]
[1750199658558,5.66653433,147.35,147.3,5.66653433]
[1750199659067,5.66653433,147.35,147.3,11.62653433]
[1750199659382,5.66653433,147.34,147.3,11.62653433]
[1750199660383,5.66653433,147.34,147.31,6.7884054]
[1750199661085,5.66653433,147.34,147.3,11.62653433]
[1750199661086,0.28432314,147.31,147.3,12.74866323]
[1750199661281,0.28432314,147.31,147.3,5.96]
[1750199661282,5.66653433,147.31,147.3,5.96]
[1750199661462,5.95085747,147.31,147.3,5.96]
[1750199661664,5.95085747,147.31,147.3,12.74857972]
[1750199661883,0.42648471,147.33,147.3,12.74857972]
[1750199662386,5.66653433,147.32,147.3,12.74857972]
[1750199662588,5.66653433,147.31,147.3,12.74857972]
[1750199664490,5.66653433,147.32,147.3,12.74857972]
[1750199664678,5.66653433,147.31,147.3,12.74857972]
[1750199668192,5.95085747,147.31,147.3,5.96]
[1750199668793,0.14216157,147.29,147.25,5.96]
[1750199668980,5.66653433,147.27,147.25,5.96]
[1750199669666,5.66653433,147.27,147.26,6.79050741]
[1750199670297,0.14216157,147.29,147.26,6.79050741]
[1750199670468,5.66653433,147.28,147.26,6.79050741]
[1750199670676,5.66653433,147.27,147.26,6.79050741]
[1750199671196,0.14216157,147.29,147.26,6.79050741]
[1750199671368,5.66653433,147.27,147.26,6.79050741]
[1750199671570,5.30634659,147.3,147.26,6.79050741]
[1750199671770,5.66653433,147.29,147.26,6.79050741]
[1750199674199,5.66653433,147.27,147.26,6.79050741]
[1750199674403,5.66653433,147.28,147.26,6.79050741]
[1750199674694,5.66653433,147.29,147.26,6.79050741]
[1750199674886,5.66653433,147.28,147.26,6.79050741]
[1750199678304,10.68855778,147.28,147.26,6.79050741]
[1750199678696,5.66653433,147.28,147.26,6.79050741]
[1750199679705,5.31301794,147.29,147.26,6.79050741]
[1750199679904,5.66653433,147.28,147.26,6.79050741]
[1750199680800,5.95085747,147.29,147.26,23.76728318]
[1750199681111,5.66653433,147.29,147.26,23.76728318]
[1750199681495,5.0286948,147.3,147.26,23.76728318]
[1750199681700,5.66653433,147.29,147.26,23.76728318]
[1750199682709,5.0286948,147.3,147.26,23.76728318]
[1750199682710,5.66653433,147.28,147.26,6.79050741]
[1750199683288,5.31301794,147.29,147.26,6.79050741]
[1750199683494,5.66653433,147.28,147.26,6.79050741]
[1750199684005,0.42648471,147.29,147.26,6.79050741]
[1750199684186,5.66653433,147.28,147.26,6.79050741]
[1750199687798,11.12171384,147.29,147.26,6.79050741]
[1750199688401,5.66653433,147.28,147.26,6.79050741]
[1750199690435,0.42648471,147.29,147.26,6.79050741]
[1750199690730,5.30880978,147.29,147.26,6.79050741]
[1750199690900,5.02448664,147.29,147.26,6.79050741]
[1750199691225,10.69102097,147.29,147.26,6.79050741]
[1750199691395,5.02448664,147.29,147.26,6.79050741]
[1750199691596,5.66653433,147.29,147.26,6.79050741]
[1750199692017,5.95085747,147.3,147.26,23.76728318]
[1750199692228,5.66653433,147.29,147.26,23.76728318]
[1750199693328,5.30889138,147.3,147.26,23.76728318]
[1750199693329,5.02456824,147.3,147.27,5.66653433]
[1750199693510,5.02456824,147.3,147.28,5.66653433]
[1750199693707,5.02456824,147.3,147.29,6.78932717]
[1750199693909,5.02456824,147.3,147.29,12.4558615]
[1750199694522,5.02456824,147.3,147.29,6.78932717]
[1750199694821,5.02456824,147.3,147.29,12.4558615]
[1750199695021,5.66653433,147.35,147.29,29.42917944]
[1750199695208,5.66653433,147.35,147.31,5.66653433]
[1750199695606,5.66653433,147.35,147.3,5.66653433]
[1750199695807,0.14216157,147.35,147.3,5.66653433]
[1750199696007,5.3121862,147.34,147.3,5.66653433]
[1750199696230,5.02786306,147.33,147.3,5.66653433]
[1750199696431,5.02786306,147.32,147.3,5.66653433]
[1750199696612,0.28432314,147.34,147.3,5.66653433]
[1750199696813,5.0271217,147.33,147.31,5.66653433]
[1750199697012,5.0271217,147.32,147.31,5.66653433]
[1750199697214,5.0271217,147.32,147.29,6.78932717]
[1750199697215,10.69365603,147.32,147.29,6.78932717]
[1750199697411,10.69365603,147.31,147.29,6.78932717]
[1750199697635,5.0271217,147.3,147.29,6.78932717]
[1750199697820,0.14216157,147.33,147.28,29.43079287]
[1750199698142,5.31123712,147.32,147.28,29.43079287]
[1750199698306,5.02691398,147.31,147.28,29.43079287]
[1750199698507,5.02691398,147.3,147.28,29.43079287]
[1750199698702,5.95085747,147.32,147.28,29.43079287]
[1750199699010,5.02681521,147.31,147.28,29.43079287]
[1750199699205,5.95085747,147.32,147.28,29.43079287]
[1750199699428,5.02669917,147.31,147.28,29.43079287]
[1750199699611,5.02669917,147.3,147.28,29.43079287]
[1750199699811,5.95085747,147.32,147.28,29.43079287]
[1750199700022,5.02627607,147.31,147.26,23.76748607]
[1750199700336,10.6928104,147.3,147.26,29.4340204]
[1750199700625,5.02627607,147.29,147.26,29.4340204]
[1750199700828,5.66653433,147.3,147.26,29.4340204]
[1750199701125,5.02588627,147.29,147.26,29.4340204]
[1750199701329,5.66653433,147.3,147.26,29.4340204]
[1750199701532,5.02629541,147.29,147.26,29.4340204]
[1750199701704,5.66653433,147.3,147.26,29.4340204]
[1750199701909,5.02629459,147.29,147.26,29.4340204]
[1750199702128,5.02629459,147.28,147.26,29.4340204]
[1750199702325,5.66653433,147.3,147.26,29.4340204]
[1750199702629,5.02594463,147.29,147.26,23.76748607]
[1750199702812,5.02594463,147.28,147.26,29.4340204]
[1750199703013,5.66653433,147.3,147.26,29.4340204]
[1750199703233,5.02594444,147.29,147.26,29.4340204]
[1750199703419,5.02594444,147.28,147.26,29.4340204]
[1750199703620,5.66653433,147.3,147.26,29.4340204]
[1750199703918,5.02669042,147.29,147.26,29.4340204]
[1750199704120,5.66653433,147.34,147.28,5.66653433]
[1750199704337,5.02889739,147.33,147.3,5.66653433]
[1750199704510,5.02889739,147.32,147.3,5.66653433]
[1750199704717,5.02889739,147.32,147.26,57.72103761]
[1750199704718,5.02946826,147.34,147.31,5.66653433]
[1750199704911,5.02927956,147.33,147.31,5.66653433]
[1750199705118,5.66653433,147.35,147.31,5.66653433]
[1750199705432,5.02940219,147.34,147.3,5.66653433]
[1750199705631,5.02940219,147.33,147.3,5.66653433]
[1750199705827,10.69687056,147.35,147.29,26.0]
[1750199706032,5.66653433,147.32,147.27,5.66653433]
[1750199706223,5.02710473,147.31,147.26,49.76748607]
[1750199706424,5.02710473,147.3,147.28,5.66653433]
[1750199706728,5.03033623,147.32,147.28,5.66653433]
[1750199706930,5.02605713,147.31,147.26,49.76748607]
[1750199707236,5.02605713,147.3,147.27,5.66653433]
[1750199707534,10.69687056,147.32,147.27,5.66653433]
[1750199707734,5.02624153,147.31,147.27,5.66653433]
[1750199707934,5.02624153,147.3,147.27,5.66653433]
[1750199708138,5.66653433,147.32,147.28,6.78978815]
[1750199708336,5.02638758,147.31,147.28,6.78978815]
[1750199708636,5.02638758,147.3,147.28,6.78978815]
[1750199708942,10.69687056,147.32,147.28,6.78978815]
[1750199709114,5.02629726,147.31,147.28,6.78978815]
[1750199709441,5.02629726,147.3,147.28,6.78978815]
[1750199709742,5.66653433,147.31,147.28,6.78978815]
[1750199709943,5.0261414,147.3,147.28,6.78978815]
[1750199710114,5.66653433,147.31,147.28,6.78978815]
[1750199710439,5.66653433,147.29,147.28,6.78978815]
[1750199710919,5.02571229,147.3,147.25,5.96]
[1750199711183,5.66653433,147.28,147.26,6.7907103]
[1750199711610,5.66653433,147.29,147.26,6.7907103]
[1750199711838,5.02554517,147.28,147.26,6.7907103]
[1750199712041,5.66653433,147.29,147.26,6.7907103]
[1750199712348,5.02571199,147.28,147.26,6.7907103]
[1750199712558,5.66653433,147.29,147.26,6.7907103]
[1750199712841,5.0259382,147.28,147.26,6.7907103]
[1750199713044,5.66653433,147.29,147.26,6.7907103]
[1750199713218,10.69247253,147.28,147.26,6.7907103]
[1750199713421,5.02578267,147.27,147.26,6.7907103]
[1750199714516,5.66653433,147.28,147.26,6.7907103]
[1750199714743,5.02557527,147.27,147.26,6.7907103]
[1750199716043,5.0257454,147.27,147.26,6.7907103]
[1750199716450,5.03033623,147.31,147.26,29.4340204]
[1750199716742,5.02543862,147.3,147.28,5.66653433]
[1750199716922,147.9,147.32,147.28,5.66653433]
[1750199717126,5.02607762,147.31,147.29,6.78932717]
[1750199717437,153.56653433,147.32,147.29,6.78932717]
[1750199717630,5.02572346,147.31,147.29,6.78932717]
[1750199717946,147.9,147.32,147.29,6.78932717]
[1750199718148,5.02574705,147.31,147.29,6.78932717]
[1750199718314,147.9,147.32,147.29,6.78932717]
[1750199718515,5.02579555,147.31,147.29,6.78932717]
[1750199718742,5.02579555,147.3,147.29,6.78932717]
[1750199718927,5.02574091,147.3,147.29,6.78932717]
[1750199720541,10.69227524,147.3,147.25,37.62653433]
[1750199720860,10.69227524,147.29,147.26,6.7907103]
[1750199721061,5.66653433,147.3,147.26,6.7907103]
[1750199721355,5.0255102,147.29,147.26,6.7907103]
[1750199721534,5.0255102,147.28,147.26,6.7907103]
[1750199721837,5.66653433,147.3,147.26,6.7907103]
[1750199722035,5.02566271,147.29,147.26,6.7907103]
[1750199722244,5.02566271,147.28,147.26,6.7907103]
[1750199722436,5.66653433,147.3,147.26,6.7907103]
[1750199722640,5.02622054,147.29,147.26,6.7907103]
[1750199722848,5.02622054,147.28,147.26,6.7907103]
[1750199723046,5.66653433,147.3,147.26,6.7907103]
[1750199723259,5.02622054,147.29,147.26,6.7907103]
[1750199723559,5.02622054,147.28,147.26,6.7907103]
[1750199723853,5.66653433,147.3,147.26,6.7907103]
[1750199724055,5.0246102,147.29,147.26,6.7907103]
[1750199724259,10.69546656,147.3,147.26,6.7907103]
[1750199724430,5.02421964,147.29,147.26,6.7907103]
[1750199724756,5.02304183,147.28,147.26,6.7907103]
[1750199724938,5.66653433,147.29,147.26,6.7907103]
[1750199725237,5.02298611,147.28,147.26,6.7907103]
[1750199725436,5.66653433,147.29,147.26,6.7907103]
[1750199725642,5.02283945,147.28,147.26,6.7907103]
[1750199725842,5.66653433,147.29,147.26,6.7907103]
[1750199726045,5.02279824,147.28,147.26,6.7907103]
[1750199726342,5.66653433,147.29,147.26,6.7907103]
[1750199726547,5.02256665,147.28,147.26,6.7907103]
[1750199726746,5.66653433,147.29,147.26,6.7907103]
[1750199727057,5.02172024,147.28,147.26,6.7907103]
[1750199727350,5.66653433,147.29,147.26,6.7907103]
[1750199727553,5.02135609,147.28,147.26,6.7907103]
[1750199727753,5.66653433,147.29,147.26,6.7907103]
[1750199727958,5.0212968,147.28,147.26,6.7907103]
[1750199728254,10.69546656,147.3,147.26,6.7907103]
[1750199728464,5.02110964,147.29,147.26,6.7907103]
[1750199728625,5.02110964,147.28,147.26,6.7907103]
[1750199728824,10.69546656,147.3,147.26,6.7907103]
[1750199729024,5.02148635,147.29,147.26,6.7907103]
[1750199729323,5.02148635,147.28,147.26,6.7907103]
[1750199729520,10.69546656,147.3,147.26,6.7907103]
[1750199729726,5.02165528,147.29,147.26,29.4340204]
[1750199729952,0.28432314,147.31,147.27,5.66653433]
[1750199730152,5.02125137,147.3,147.27,5.66653433]